bitfinex/quotes_SOLUSD_20260201
["timestamp","ask_amount","ask_price","bid_price","bid_amount"]
[1769969551508,29.0,103.5,103.46,13.44241747]
[1769969551804,23.08377529,103.51,103.47,4.45726989]
[1769969552011,23.08377529,103.51,103.46,23.1074785]
[1769969552399,8.98514758,103.5,103.47,9.66432956]
[1769969552706,23.08377529,103.51,103.47,9.66432956]
[1769969552904,18.64560634,103.52,103.47,14.12159945]
[1769969553092,13.42287297,103.51,103.47,4.45726989]
[1769969553290,18.64560634,103.52,103.47,9.66455303]
[1769969553604,4.43772539,103.51,103.47,23.1069705]
[1769969554504,4.43772539,103.51,103.42,4.45726989]
[1769969554505,4.43772539,103.47,103.42,4.45726989]
[1769969554690,13.42287297,103.47,103.44,9.66694194]
[1769969554890,8.98514758,103.48,103.44,14.12421183]
[1769969555305,8.98514758,103.49,103.46,4.45726989]
[1769969555606,13.42287297,103.5,103.46,14.12261283]
[1769969555804,13.42287297,103.48,103.44,4.45726989]
[1769969555986,23.08662146,103.48,103.44,9.66744006]
[1769969556405,8.98514758,103.47,103.43,14.12517391]
[1769969557604,8.98514758,103.46,103.43,4.45726989]
[1769969558012,18.6513065,103.46,103.42,9.66929245]
[1769969558311,18.6513065,103.46,103.41,13.0392458]
[1769969558312,8.98514758,103.45,103.41,4.05409822]
[1769969559207,8.98514758,103.45,103.41,13.72415619]
[1769969560315,22.93532203,103.46,103.41,13.72415619]
[1769969561405,18.64791692,103.49,103.45,4.05409822]
[1769969561614,22.93193245,103.49,103.43,13.0392458]
[1769969562414,13.26916311,103.45,103.41,13.72415619]
[1769969562606,8.98514758,103.45,103.41,13.72415619]
[1769969562805,13.26916311,103.46,103.41,13.72415619]
[1769969562995,42.80484029,103.49,103.44,4.05409822]
[1769969563194,47.08885582,103.49,103.44,13.0392458]
[1769969563392,47.08885582,103.49,103.44,22.70619282]
[1769969563596,3.69059804,103.5,103.47,13.0392458]
[1769969563792,3.69059804,103.5,103.47,4.05409822]
[1769969564101,13.26916311,103.48,103.44,9.66694702]
[1769969564304,13.26916311,103.48,103.43,22.70721283]
[1769969565015,13.26916311,103.48,103.43,13.72206525]
[1769969565201,4.28401553,103.48,103.44,14.16714779]
[1769969565413,4.37024865,103.49,103.44,23.15229537]
[1769969565744,18.64217414,103.56,103.49,4.49978388]
[1769969566013,18.64217414,103.56,103.51,4.49978388]
[1769969566014,4.37024865,103.55,103.51,4.49978388]
[1769969566391,4.37024865,103.55,103.52,8.98514758]
[1769969566596,4.37024865,103.55,103.51,4.49978388]
[1769969566806,4.37024865,103.55,103.51,13.48493146]
[1769969567214,23.01082348,103.57,103.51,13.48493146]
[1769969567527,14.0256759,103.57,103.53,9.65903602]
[1769969568016,42.52527146,103.58,103.53,23.14396748]
[1769969569001,42.52527146,103.58,103.52,24.14924117]
[1769969569002,13.35539623,103.57,103.52,14.15943017]
[1769969569533,4.37024865,103.54,103.5,4.49978388]
[1769969569702,4.37024865,103.54,103.51,9.66036498]
[1769969569894,8.98514758,103.55,103.51,9.66036498]
[1769969569895,9.65616608,103.57,103.52,9.65996196]
[1769969570110,4.37024865,103.56,103.52,9.65996196]
[1769969570306,9.65616608,103.57,103.52,14.15974584]
[1769969570629,13.35539623,103.57,103.52,9.65996196]
[1769969570917,8.98514758,103.56,103.52,14.15974584]
[1769969571715,6.03071395,103.58,103.56,4.49978388]
[1769969571918,1.53071395,103.58,103.56,8.98514758]
[1769969572114,1e-08,103.58,103.56,13.48493146]
[1769969573215,1e-08,103.58,103.57,8.98514758]
[1769969573412,1e-08,103.58,103.56,13.48493146]
[1769969573614,1e-08,103.58,103.57,9.65530559]
[1769969574724,1e-08,103.58,103.57,18.64045317]
[1769969574925,1e-08,103.58,103.57,9.65530559]
[1769969575128,1e-08,103.58,103.57,18.64045317]
[1769969576321,0.2,103.59,103.58,13.48493146]
[1769969576322,1e-08,103.59,103.58,13.48493146]
[1769969577629,1e-08,103.59,103.58,4.49978388]
[1769969577805,1e-08,103.59,103.57,9.65530559]
[1769969579020,1e-08,103.59,103.56,14.15562361]
[1769969579402,4.37024865,103.58,103.54,9.65757394]
[1769969579602,4.37024865,103.58,103.53,13.48493146]
[1769969580405,4.37024865,103.58,103.54,9.65766514]
[1769969581916,4.37024865,103.57,103.54,9.65766514]
[1769969582417,4.37024865,103.57,103.51,37.63608831]
[1769969582418,4.37024865,103.56,103.51,37.63608831]
[1769969582602,8.98514758,103.57,103.46,8.98514758]
[1769969582603,4.37024865,103.6,103.55,4.49978388]
[1769969582802,14.02236776,103.61,103.56,13.48493146]
[1769969583019,13.35539623,103.63,103.58,13.48493146]
[1769969583334,23.00553046,103.63,103.58,23.13865699]
[1769969583626,14.02038288,103.63,103.58,23.13865699]
[1769969583935,32.85142837,103.65,103.58,23.13865699]
[1769969583936,10.40167702,103.65,103.61,13.48493146]
[1769969584225,6.03142837,103.65,103.63,13.48493146]
[1769969584406,0.2,103.68,103.64,4.49978388]
[1769969584606,4.99835099,103.72,103.68,4.42660108]
[1769969584832,6.02514328,103.75,103.7,8.98514758]
[1769969585000,4.99984884,103.74,103.71,8.98514758]
[1769969585200,4.99984884,103.74,103.72,18.62594112]
[1769969585406,6.02514328,103.75,103.73,8.98514758]
[1769969585603,6.02514328,103.75,103.71,9.6420545]
[1769969585815,6.02514328,103.75,103.72,18.62640978]
[1769969586016,1e-08,103.75,103.74,8.98514758]
[1769969586227,0.1,103.79,103.74,8.98514758]
[1769969586401,0.1,103.79,103.72,33.74461738]
[1769969586609,10.53388187,103.84,103.78,8.92691804]
[1769969586807,20.16411068,103.84,103.79,8.92691804]
[1769969587022,6.03388187,103.84,103.8,8.92691804]
[1769969587231,6.03388187,103.84,103.82,8.92691804]
[1769969587435,10.53388187,103.84,103.79,8.92691804]
[1769969587617,4.5,103.83,103.78,9.63501241]
[1769969587818,4.5,103.8,103.74,8.92691804]
[1769969588135,4.5,103.79,103.75,9.63833292]
[1769969588348,4.5,103.8,103.75,8.92691804]
[1769969588641,4.5,103.77,103.72,8.92691804]
[1769969589320,4.5,103.77,103.73,9.64025967]
[1769969590044,23.06068088,103.81,103.74,8.92691804]
[1769969590215,4.5,103.8,103.73,9.64025967]
[1769969590418,13.42691804,103.8,103.74,8.92691804]
[1769969590833,4.5,103.78,103.73,18.56717771]
[1769969591533,4.5,103.78,103.75,8.92691804]
[1769969591841,4.5,103.78,103.74,8.92691804]
[1769969592620,4.5,103.78,103.73,42.66820923]
[1769969593134,4.5,103.78,103.74,8.92691804]
[1769969593441,4.5,103.78,103.73,33.74129119]
[1769969593442,4.5,103.77,103.72,8.92691804]
[1769969594034,4.5,103.76,103.71,8.92691804]
[1769969594217,4.5,103.74,103.69,33.7544604]
[1769969594422,4.5,103.74,103.69,18.57104958]
[1769969594643,4.5,103.75,103.71,8.92691804]
[1769969594821,4.5,103.75,103.69,33.7544604]
[1769969594822,4.5,103.79,103.69,86.25038897]
[1769969595140,4.5,103.79,103.74,8.92691804]
[1769969595341,14.13298333,103.81,103.77,8.92691804]
[1769969595538,14.13298333,103.81,103.77,18.56344518]
[1769969595846,4.5,103.81,103.78,8.92691804]
[1769969596218,4.5,103.8,103.75,8.92691804]
[1769969596419,4.5,103.79,103.75,8.92691804]
[1769969596725,4.5,103.79,103.75,18.56473734]
[1769969597226,4.5,103.79,103.71,26.78]
[1769969597227,4.5,103.81,103.78,8.92691804]
[1769969597442,4.5,103.81,103.79,8.92691804]
[1769969597647,4.5,103.81,103.78,8.92691804]
[1769969597844,6.01384496,103.82,103.79,8.92691804]
[1769969598224,6.01384496,103.82,103.8,8.92691804]
[1769969598644,10.51384496,103.82,103.79,8.92691804]
[1769969598825,4.5,103.81,103.77,8.92691804]
[1769969599025,4.5,103.8,103.76,8.92691804]
[1769969599238,4.5,103.79,103.75,18.56547225]
[1769969600636,4.5,103.81,103.78,8.92691804]
[1769969600836,4.5,103.81,103.77,8.92691804]
[1769969601032,10.51384496,103.82,103.78,8.92691804]
[1769969601435,10.51384496,103.82,103.75,33.73493975]
[1769969601436,10.51384496,103.82,103.79,8.92691804]
[1769969602342,6.03792625,103.84,103.81,8.92691804]
[1769969603128,6.03792625,103.84,103.82,8.92691804]
[1769969603852,8.92691804,103.88,103.82,9.63168046]
[1769969604034,8.92691804,103.87,103.83,9.63107743]
[1769969604232,4.45397975,103.85,103.81,8.92691804]
[1769969604440,4.45397975,103.87,103.82,8.92691804]
[1769969604751,4.45397975,103.86,103.82,18.55876877]
[1769969605132,13.38089779,103.86,103.82,9.63185073]
[1769969605338,4.45397975,103.85,103.82,18.55876877]
[1769969605651,4.45397975,103.84,103.8,18.56059721]
[1769969605948,4.45397975,103.83,103.79,8.92691804]
[1769969606134,4.45397975,103.82,103.78,8.92691804]
[1769969606330,4.45397975,103.82,103.77,33.01708012]
[1769969606528,4.45397975,103.84,103.79,8.92691804]
[1769969606739,4.45397975,103.84,103.78,24.24061571]
[1769969606740,4.45397975,103.84,103.81,8.92691804]
[1769969606944,4.45397975,103.88,103.82,0.15195364]
[1769969607142,4.45397975,103.88,103.84,8.92691804]
[1769969607731,4.45397975,103.88,103.85,18.55619102]
[1769969607949,6.03411396,103.89,103.87,8.92691804]
[1769969608147,14.0772843,103.92,103.88,8.92691804]
[1769969608443,4.45397975,103.92,103.88,8.92691804]
[1769969608650,4.45397975,103.92,103.89,8.92691804]
[1769969608848,4.45397975,103.93,103.89,8.92691804]
[1769969609050,4.55397975,103.95,103.91,8.92691804]
[1769969609355,4.45397975,103.94,103.9,8.92691804]
[1769969609736,4.45397975,103.94,103.9,18.5508168]
[1769969610136,4.45397975,103.94,103.91,8.92691804]
[1769969610449,4.45397975,103.93,103.9,18.5508168]
[1769969610653,4.45397975,103.93,103.88,8.92691804]
[1769969610947,4.45397975,103.93,103.89,18.55239336]
[1769969611161,8.92691804,103.93,103.85,50.831589]
[1769969611449,4.45397975,103.89,103.85,18.55563614]
[1769969611648,4.45397975,103.91,103.87,8.92691804]
[1769969611856,4.45397975,103.92,103.88,18.55279157]
[1769969612048,4.45397975,103.92,103.89,8.92691804]
[1769969612438,4.55397975,103.95,103.91,8.92691804]
[1769969612749,1e-08,103.95,103.94,8.92691804]
[1769969612957,1e-08,103.95,103.93,8.92691804]
[1769969613157,4.45397976,103.95,103.9,8.92691804]
[1769969613328,4.45397975,103.94,103.9,8.92691804]
[1769969613533,4.45397975,103.94,103.89,8.92691804]
[1769969613838,4.45397975,103.93,103.89,8.92691804]
[1769969615059,4.45397975,103.93,103.9,8.92691804]
[1769969615349,4.45397975,103.93,103.89,8.92691804]
[1769969615739,4.45397975,103.92,103.88,9.62587353]
[1769969617264,4.45397975,103.91,103.86,32.99707877]
[1769969617440,4.45397975,103.91,103.87,8.92691804]
[1769969617858,4.42402318,103.87,103.83,8.92691804]
[1769969618067,4.42402318,103.87,103.83,9.63063219]
[1769969618281,4.42402318,103.86,103.82,9.63189972]
[1769969618564,4.42402318,103.86,103.82,18.55881776]
[1769969618766,13.35094122,103.86,103.82,9.63189972]
[1769969619268,4.42402318,103.86,103.82,9.63189972]
[1769969620056,4.42402318,103.85,103.8,8.92691804]
[1769969620346,4.42402318,103.84,103.81,9.63263854]
[1769969621758,4.42402318,103.84,103.79,33.16536743]
[1769969621965,33.69923833,103.86,103.81,8.92691804]
[1769969621966,22.97972467,103.86,103.81,8.92691804]
[1769969622153,4.42402318,103.85,103.81,8.92691804]
[1769969622346,4.42402318,103.85,103.8,42.79756146]
[1769969622549,4.42402318,103.87,103.84,8.92691804]
[1769969623352,32.99235878,103.89,103.85,8.92691804]
[1769969623353,4.42402318,103.89,103.85,8.92691804]
[1769969623663,4.42402318,103.86,103.82,8.92691804]
[1769969624159,4.42402318,103.86,103.82,18.55823903]
[1769969624563,14.04910708,103.9,103.85,8.92691804]
[1769969624745,4.42402318,103.89,103.85,8.92691804]
[1769969624946,18.55200194,103.9,103.84,8.92691804]
[1769969624947,4.42402318,103.88,103.84,8.92691804]
[1769969625460,4.42402318,103.88,103.85,8.92691804]
[1769969626268,4.42402318,103.88,103.85,18.55554344]
[1769969626472,14.04704696,103.92,103.87,8.92691804]
[1769969626767,14.04514266,103.94,103.9,8.92691804]
[1769969627068,4.42402318,103.94,103.89,8.92691804]
[1769969627769,4.42402318,103.92,103.86,0.15195364]
[1769969627947,4.42402318,103.91,103.86,8.92691804]
[1769969628148,4.42402318,103.91,103.88,8.92691804]
[1769969628452,4.42402318,103.91,103.88,9.62608139]
[1769969628641,4.42402318,103.91,103.87,18.5540855]
[1769969628970,4.42402318,103.9,103.86,9.62803077]
[1769969629363,4.42402318,103.9,103.86,18.55494881]
[1769969629567,4.42402318,103.9,103.86,9.62803077]
[1769969629767,4.42402318,103.9,103.87,9.62717685]
[1769969629968,4.42402318,103.9,103.86,18.5548769]
[1769969630168,4.42402318,103.91,103.87,18.55382366]
[1769969630373,9.62105099,103.94,103.9,8.92691804]
[1769969630667,4.42402318,103.93,103.87,33.84740648]
[1769969630874,4.42402318,103.93,103.89,8.92691804]
[1769969631069,4.42402318,103.91,103.87,9.62690562]
[1769969631657,4.42402318,103.92,103.87,18.55382366]
[1769969632071,4.42402318,103.9,103.86,9.62770293]
[1769969632371,4.42402318,103.93,103.89,8.92691804]
[1769969633483,4.42402318,103.92,103.89,9.62494573]
[1769969633971,4.42402318,103.92,103.89,18.55186377]
[1769969634178,9.62234156,103.93,103.89,18.55186377]
[1769969634179,4.42402318,103.93,103.9,8.92691804]
[1769969634367,1e-08,103.95,103.92,8.92691804]
[1769969634567,1e-08,103.95,103.91,8.92691804]
[1769969634757,4.42402319,103.95,103.91,8.92691804]
[1769969635474,4.42402318,103.94,103.89,24.06391375]
[1769969635657,4.42402318,103.93,103.89,9.62530819]
[1769969636577,4.42402318,103.93,103.89,18.55222623]
[1769969636876,4.42402318,103.91,103.88,9.62627762]
[1769969637256,4.42402318,103.93,103.9,18.55079044]
[1769969637953,4.42402318,103.93,103.89,18.55209875]
[1769969638154,4.42402318,103.93,103.9,9.62444009]
[1769969638557,14.04607512,103.93,103.89,18.55228184]
[1769969638753,4.42402318,103.92,103.88,9.62601653]
[1769969639064,4.42402318,103.92,103.87,8.92691804]
[1769969639267,4.42402318,103.92,103.88,18.55288819]
[1769969639459,4.42402318,103.92,103.89,18.55226168]
[1769969639869,14.04541113,103.94,103.9,8.92691804]
[1769969640177,1e-08,103.95,103.92,8.92691804]
[1769969640791,1e-08,103.95,103.91,0.15195364]
[1769969641080,1e-08,103.95,103.92,8.92691804]
[1769969641376,14.04403912,103.95,103.91,8.92691804]
[1769969641579,4.42402318,103.94,103.89,42.61617543]
[1769969641771,1e-08,103.95,103.92,8.92691804]
[1769969641974,1e-08,103.95,103.93,8.92691804]
[1769969642759,1e-08,103.95,103.94,8.92691804]
[1769969643263,1e-08,103.95,103.93,8.92691804]
[1769969643659,1e-08,103.95,103.94,9.62093515]
[1769969644176,1e-08,103.95,103.94,18.54785319]
[1769969644783,4.42402318,104.01,103.95,0.15195364]
[1769969644987,4.42402318,103.99,103.94,8.92691804]
[1769969645161,4.42402318,103.98,103.93,18.54839236]
[1769969645581,4.42402318,103.95,103.91,9.62316533]
[1769969645890,4.42402318,103.96,103.92,8.92691804]
[1769969646088,4.42402318,103.98,103.94,8.92691804]
[1769969646381,4.42402318,103.98,103.95,8.89311803]
[1769969646961,4.42402318,103.98,103.94,8.89311803]
[1769969647168,4.42402318,103.97,103.92,8.89311803]
[1769969647370,4.42402318,103.96,103.91,42.57556543]
[1769969647573,4.42430673,103.95,103.91,18.51628336]
[1769969647989,14.04443866,103.95,103.91,9.62316533]
[1769969648291,4.42430673,103.92,103.87,8.89311803]
[1769969648469,4.42430673,103.91,103.87,8.89311803]
[1769969648669,4.42430673,103.93,103.89,9.62510648]
[1769969648882,4.42430673,103.92,103.89,9.62510648]
[1769969649082,4.42430673,103.92,103.88,9.62614218]
[1769969649389,4.42430673,103.92,103.89,9.62538082]
[1769969649770,4.42430673,103.92,103.87,42.58755177]
[1769969650193,4.42430673,103.92,103.87,42.73950541]
[1769969651193,4.42430673,103.91,103.87,42.73950541]
[1769969652906,4.42430673,103.89,103.86,9.62790066]
[1769969653088,4.42430673,103.89,103.85,8.89311803]
[1769969653399,4.42430673,103.92,103.87,9.04507167]
[1769969653775,4.42430673,103.91,103.85,8.89311803]
[1769969654001,4.42430673,103.9,103.85,8.89311803]
[1769969654299,4.42430673,103.9,103.86,33.69921047]
[1769969655000,4.42430673,103.92,103.87,9.04507167]
[1769969655291,4.42430673,103.92,103.86,33.69921047]
[1769969655292,4.42430673,103.91,103.86,42.5923285]
[1769969655688,4.42430673,103.91,103.87,8.89311803]
[1769969655872,4.42430673,103.91,103.88,9.6264921]
[1769969658079,5.37425765,103.93,103.88,9.6264921]
[1769969658279,8.89311803,103.92,103.87,9.62703156]
[1769969658582,8.89311803,103.93,103.87,22.67962646]
[1769969658992,8.89311803,103.93,103.87,46.74817368]
[1769969659193,26.74,103.94,103.89,13.0525949]
[1769969659582,48.09197056,103.97,103.9,13.0525949]
[1769969659583,18.51266064,103.96,103.9,13.0525949]
[1769969659977,9.61954261,103.96,103.9,13.0525949]
[1769969660190,4.42430673,103.95,103.91,9.62371282]
[1769969660502,4.42430673,103.94,103.91,9.62371282]
[1769969661299,4.42430673,103.94,103.9,9.62432877]
[1769969662675,4.42430673,103.93,103.9,9.62432877]
[1769969663002,4.42430673,103.92,103.89,18.51819273]
[1769969663304,13.31742476,103.94,103.89,46.74158335]
[1769969663594,4.42430673,103.93,103.89,13.78455157]
[1769969664299,22.9393579,103.93,103.89,9.6250747]
[1769969664884,4.42430673,103.92,103.88,9.62603188]
[1769969665104,4.42430673,103.91,103.87,4.15947687]
[1769969665281,4.42430673,103.91,103.88,9.62644394]
[1769969668997,4.42430673,103.9,103.87,9.62738601]
[1769969669700,4.42430673,103.9,103.86,9.62784873]
[1769969670002,13.31742476,103.9,103.86,9.62784873]
[1769969670186,4.42430673,103.88,103.85,9.62914445]
[1769969670493,22.94280737,103.9,103.85,13.0525949]
[1769969670700,14.04968934,103.9,103.85,13.0525949]
[1769969670903,4.42430673,103.89,103.85,4.15947687]
[1769969671489,4.42430673,103.89,103.86,9.62834585]
[1769969671903,4.42430673,103.92,103.87,8.89311803]
[1769969672080,4.42430673,103.95,103.9,13.0525949]
[1769969672395,4.42430673,103.95,103.91,13.0525949]
[1769969672598,31.16430673,103.97,103.92,13.0525949]
[1769969673004,31.16430673,103.97,103.9,13.0525949]
[1769969673005,4.42430673,103.94,103.9,13.0525949]
[1769969673207,4.42430673,103.94,103.9,4.15947687]
[1769969673694,13.31742476,103.94,103.9,13.78344455]
[1769969674188,4.42430673,103.94,103.9,13.78344455]
[1769969674700,4.42430673,103.94,103.9,46.73816027]
[1769969676107,4.42430673,103.96,103.92,8.89311803]
[1769969676685,4.42430673,103.96,103.91,13.0525949]
[1769969676900,4.42430673,103.95,103.91,4.15947687]
[1769969677107,4.42430673,103.95,103.91,13.0525949]
[1769969677985,14.04470081,103.95,103.91,9.62359827]
[1769969678385,4.42430673,103.95,103.91,18.5167163]
[1769969678788,4.43207615,103.94,103.91,9.62359827]
[1769969679208,4.43207615,103.94,103.91,18.5167163]
[1769969679791,14.05159468,103.96,103.92,8.89311803]
[1769969679991,4.43207615,103.95,103.92,8.89311803]
[1769969680211,4.43207615,103.95,103.92,18.51572037]
[1769969680805,14.05209791,103.95,103.91,18.51632862]
[1769969681612,4.43207615,103.95,103.92,9.62274561]
[1769969682294,4.43207615,103.97,103.94,8.89311803]
[1769969682495,4.43207615,103.98,103.95,8.89311803]
[1769969682698,9.61678605,103.99,103.95,8.89311803]
[1769969682999,14.0488622,103.99,103.96,8.89311803]
[1769969683992,14.0488622,103.99,103.95,8.89311803]
[1769969684208,4.43207615,103.97,103.93,8.89311803]
[1769969684403,4.43207615,103.97,103.92,32.94824752]
[1769969684606,4.43207615,103.97,103.92,37.09855073]
[1769969685314,14.05064271,103.97,103.93,9.62133742]
[1769969685496,4.4124566,104.0,103.95,8.89311803]
[1769969685812,4.4124566,103.99,103.95,8.89311803]
[1769969686407,4.4124566,103.97,103.93,42.56910761]
[1769969686610,4.4124566,103.97,103.93,46.83800303]
[1769969687211,4.4124566,103.97,103.93,18.51445545]
[1769969687399,4.4124566,103.97,103.93,9.62133742]
[1769969687601,14.03076269,103.97,103.93,18.51445545]
[1769969688009,4.4124566,103.95,103.9,24.05966406]
[1769969688308,13.30557463,103.94,103.88,8.89311803]
[1769969688514,4.4124566,103.92,103.88,9.62596128]
[1769969688709,60.3837038,103.97,103.85,4.26889542]
[1769969688710,4.4124566,103.9,103.86,8.89311803]
[1769969688893,4.4124566,103.9,103.86,18.52059842]
[1769969689209,4.4124566,103.9,103.87,9.62719556]
[1769969689416,4.4124566,103.9,103.86,18.52146388]
[1769969690007,4.4124566,103.9,103.86,9.62834585]
[1769969690209,14.03727806,103.9,103.86,9.62834585]
[1769969690396,4.4124566,103.89,103.85,22.79086538]
[1769969690596,4.4124566,103.89,103.85,46.86404785]
[1769969690791,4.4124566,103.93,103.88,13.16201345]
[1769969690999,4.4124566,103.94,103.9,8.89311803]
[1769969691209,4.4124566,103.95,103.91,8.89311803]
[1769969691397,4.4124566,103.95,103.91,18.51616864]
[1769969691710,4.4124566,103.97,103.93,8.89311803]
[1769969691912,4.4124566,103.97,103.92,13.16201345]
[1769969692708,14.03070476,103.97,103.93,18.51497889]
[1769969693015,14.03070476,103.97,103.93,9.62186086]
[1769969693623,4.4124566,103.97,103.93,9.62186086]
[1769969693799,4.4124566,103.97,103.93,18.51497889]
[1769969694927,4.4124566,103.97,103.93,9.62186086]
[1769969695717,13.30557463,103.94,103.88,22.78802532]
[1769969695906,4.4124566,103.93,103.89,9.62499969]
[1769969696421,13.30557463,103.93,103.89,9.62554623]
[1769969696620,4.4124566,103.91,103.86,13.16201345]
[1769969696807,22.92940309,103.91,103.87,9.62691914]
[1769969697004,22.92940309,103.91,103.86,9.62789115]
[1769969697005,4.4124566,103.9,103.86,9.62789115]
[1769969697309,4.4124566,103.89,103.86,9.62816598]
[1769969698307,4.4124566,103.9,103.86,9.62816598]
[1769969698520,4.4124566,103.89,103.85,9.62897841]
[1769969698724,4.4124566,103.91,103.87,13.16201345]
[1769969698904,4.4124566,103.91,103.88,9.6264921]
[1769969699719,4.4124566,103.89,103.86,9.62778973]
[1769969700504,4.4124566,103.86,103.79,4.26889542]
[1769969700697,4.4124566,103.84,103.79,4.26889542]
[1769969701031,4.4124566,103.81,103.78,0.2]
[1769969701228,9.63039676,103.84,103.79,9.63483932]
[1769969701229,4.4124566,103.83,103.79,9.63483932]
[1769969701601,4.4124566,103.84,103.79,22.79685277]
[1769969701814,4.4124566,103.85,103.8,13.16201345]
[1769969702020,4.4124566,103.82,103.78,9.83575277]
[1769969702224,4.4124566,103.8,103.78,0.2]
[1769969702527,4.4124566,103.82,103.78,0.2]
[1769969702722,4.4124566,103.82,103.78,13.36201345]
[1769969702925,4.4124566,103.84,103.79,22.79680202]
[1769969703225,4.4124566,103.81,103.78,0.2]
[1769969703422,4.4124566,103.8,103.78,0.2]
[1769969704125,4.4124566,103.8,103.78,9.83570514]
[1769969704425,40.78272222,103.84,103.78,22.99771859]
[1769969704806,4.4124566,103.84,103.78,47.08713851]
[1769969705007,4.4124566,103.88,103.82,13.16201345]
[1769969705322,8.89311803,103.95,103.85,8.89311803]
[1769969705323,4.4124566,103.9,103.85,8.89311803]
[1769969705724,4.4124566,103.92,103.86,13.16201345]
[1769969706025,4.4124566,103.92,103.87,8.89311803]
[1769969706420,4.4124566,103.92,103.88,8.89311803]
[1769969706632,4.4124566,103.93,103.89,8.89311803]
[1769969706827,4.4124566,103.92,103.88,8.89311803]
[1769969707023,4.4124566,103.92,103.89,9.6255655]
[1769969707422,4.4124566,103.91,103.87,9.6265954]
[1769969707731,4.4124566,103.91,103.88,9.62634014]
[1769969708232,4.4124566,103.91,103.88,18.51945817]
[1769969708535,4.4124566,103.91,103.87,18.53192304]
[1769969708718,4.47689818,103.93,103.88,22.88420183]
[1769969708919,4.47689818,103.92,103.88,9.62641533]
[1769969709431,4.47689818,103.9,103.84,13.2577865]
[1769969709637,4.47689818,103.89,103.83,8.9051558]
[1769969709937,4.47689818,103.88,103.83,13.2577865]
[1769969710236,4.47689818,103.88,103.84,18.53493575]
[1769969710441,4.47689818,103.88,103.83,28.4297009]
[1769969710442,4.47689818,103.88,103.83,22.88865113]
[1769969710640,13.38205398,103.88,103.83,13.98349533]
[1769969710815,4.47689818,103.87,103.84,9.63003088]
[1769969711021,4.47689818,103.91,103.86,13.98095666]
[1769969711321,4.47689818,103.88,103.85,9.62885525]
[1769969711741,4.47689818,103.87,103.84,9.63012374]
[1769969712117,4.47689818,103.87,103.83,9.63099116]
[1769969712740,4.47689818,103.87,103.84,9.63005662]
[1769969713338,4.47689818,103.9,103.85,13.2577865]
[1769969713635,13.38205398,103.89,103.84,4.3526307]
[1769969713938,4.47689818,103.88,103.83,46.96581311]
[1769969714330,4.47689818,103.88,103.84,8.9051558]
[1769969714525,4.47689818,103.87,103.82,18.53696635]
[1769969714734,4.47689818,103.86,103.82,9.63181055]
[1769969716040,23.00884329,103.88,103.82,46.96973575]
[1769969716237,4.47689818,103.87,103.82,46.96973575]
[1769969716625,4.47689818,103.83,103.78,4.5526307]
[1769969716843,13.38205398,103.83,103.78,14.18816334]
[1769969717042,4.47689818,103.84,103.8,9.63335975]
[1769969717359,4.47689818,103.84,103.78,13.4577865]
[1769969717360,4.47689818,103.88,103.82,13.2577865]
[1769969717849,4.47689818,103.88,103.83,13.2577865]
[1769969718221,4.47689818,103.87,103.82,8.9051558]
[1769969718444,4.47689818,103.87,103.82,13.2577865]
[1769969718740,4.47689818,103.89,103.84,4.3526307]
[1769969718943,4.47689818,103.88,103.84,4.3526307]
[1769969719128,4.47689818,103.87,103.82,4.3526307]
[1769969719329,4.47689818,103.87,103.82,13.2577865]
[1769969719529,4.47689818,103.87,103.83,9.6311278]
[1769969720824,14.10468372,103.87,103.83,9.6311278]
[1769969721043,4.47689818,103.83,103.79,9.63405172]
[1769969722046,4.47689818,103.85,103.8,13.2577865]
[1769969722243,14.1063096,103.85,103.8,13.2577865]
[1769969723249,14.1063096,103.85,103.8,4.3526307]
[1769969723443,23.0114654,103.85,103.8,4.3526307]
[1769969724149,14.10563665,103.86,103.81,13.2577865]
[1769969724351,4.47689818,103.85,103.81,4.3526307]
[1769969724857,4.47689818,103.85,103.8,46.97610749]
[1769969725650,4.47689818,103.85,103.8,42.62347679]
[1769969725847,4.47689818,103.85,103.8,46.97610749]
[1769969727448,14.10446366,103.87,103.83,4.3526307]
[1769969727644,4.47689818,103.86,103.82,33.71219418]
[1769969728229,13.38205398,103.86,103.82,33.71219418]
[1769969728446,4.47689818,103.86,103.82,38.06482488]
[1769969729158,14.10290359,103.89,103.84,13.2577865]
[1769969729533,23.00805939,103.89,103.84,13.98228644]
[1769969729932,4.47689818,103.88,103.84,13.98228644]
[1769969730548,13.38205398,103.86,103.8,13.2577865]
[1769969730757,13.38205398,103.85,103.81,9.63252985]
[1769969730938,4.47689818,103.82,103.78,28.64008899]
[1769969731138,4.47689818,103.81,103.78,9.83537004]
[1769969731337,4.47689818,103.79,103.78,0.2]
[1769969731541,4.47689818,103.79,103.76,7.53333291]
[1769969731862,4.47689818,103.8,103.75,13.2577865]
[1769969732151,13.38205398,103.81,103.77,9.63627084]
[1769969732357,4.47689818,103.82,103.78,9.63561803]
[1769969732559,40.84742487,103.84,103.79,13.2577865]
[1769969732740,31.21689818,103.84,103.79,13.2577865]